fUSD/lending_fUSD_20260415
["ID","MTS","AMOUNT","RATE_DAILY","PERIOD"]
[420510249,1776187841207,-500.0,0.00013749,2]
[420510250,1776187841218,-500.0,0.00013749,2]
[420510251,1776187841235,-500.0,0.00013749,2]
[420510252,1776187841248,-500.0,0.00013749,2]
[420510253,1776187841259,-500.0,0.00013749,2]
[420510254,1776187841269,-500.0,0.00013749,2]
[420510255,1776187841287,-500.0,0.00013749,2]
[420510256,1776187841298,-500.0,0.00013749,2]
[420510257,1776187841309,-500.0,0.00013749,2]
[420510258,1776187841321,-500.0,0.00013749,2]
[420510259,1776187841337,-500.0,0.00013749,2]
[420510260,1776187841347,-500.0,0.00013749,2]
[420510261,1776187841357,-500.0,0.00013749,2]
[420510262,1776187841369,-1700.0,0.000138,5]
[420510263,1776187841392,-2200.0,0.000139,5]
[420510264,1776187841405,-180.02,0.00014008,2]
[420510265,1776187841416,-160.0,0.00014061,2]
[420510266,1776187841426,-2500.0,0.00014098,2]
[420510267,1776187841441,-500.0,0.00014098,2]
[420510268,1776187841458,-500.0,0.00014098,2]
[420510269,1776187841468,-500.0,0.00014098,2]
[420510270,1776187841482,-470.83236795,0.00014107,2]
[420510271,1776187841496,-308.21171226,0.00014107,2]
[420510272,1776187841507,-176.22234124,0.00014107,2]
[420510273,1776187841517,-231.57781113,0.00014108,2]
[420510274,1776187841530,-187.90158534,0.00014108,2]
[420510275,1776187841545,-6149.06868162,0.00014108,2]
[420510276,1776187841557,-211.17683598,0.00014128,2]
[420510277,1776187841576,-3240.0,0.00014203,2]
[420510278,1776187841586,-230117.45720625,0.00014205,2]
[420510279,1776187841595,-150.0,0.00014207,2]
[420510280,1776187841606,-1292580.75130352,0.00014208,2]
[420510291,1776187846037,-240.1915043,0.00014108,2]
[420510292,1776187846047,-5267.80850282,0.00014208,2]
[420510293,1776187846258,-202151.44019366,0.00014208,2]
[420510294,1776187846273,-33047.9748,0.00014208,2]
[420510295,1776187846290,-1042428.8905251,0.00014208,2]
[420510296,1776187846303,-683407.19527243,0.00014208,2]
[420510297,1776187846342,-4813.38169941,0.00014208,2]
[420510316,1776189032163,-183.0,0.00010499,2]
[420510317,1776189032187,-329.90085166,0.00010499,2]
[420510318,1776189032247,-870.09914834,0.00010499,2]
[420510319,1776189032266,-5532.0,0.000105,5]
[420510320,1776189032287,-14380.5502,0.000105,2]
[420510321,1776189032310,-7190.2751,0.00011025,2]
[420510322,1776189032332,-300.0,0.00011198,2]
[420510323,1776189032353,-600.0,0.00011404,2]
[420510324,1776189032366,-600.0,0.00011404,2]
[420510325,1776189032382,-600.0,0.00011404,2]
[420510326,1776189032394,-600.0,0.00011404,2]
[420510327,1776189032404,-1680.0,0.00011549,2]
[420510328,1776189032414,-600.0,0.0001155,2]
[420510329,1776189032426,-500.0,0.00011869,2]
[420510330,1776189032436,-2396.7583,0.00012075,2]
[420510331,1776189032446,-578.20924308,0.00012127,2]
[420510332,1776189032462,-500.0,0.00012127,2]
[420510333,1776189032474,-151.0,0.00012127,2]
[420510334,1776189032484,-174.61919144,0.00012127,2]
[420510335,1776189032495,-288.75734877,0.00012127,2]
[420510336,1776189032511,-500.0,0.00012182,2]
[420510337,1776189032521,-151.0,0.00012182,2]
[420510338,1776189032532,-500.0,0.00012237,2]
[420510339,1776189032542,-151.0,0.00012237,2]
[420510340,1776189032553,-500.0,0.00012292,2]
[420510341,1776189032564,-420.0,0.00012303,2]
[420510342,1776189032574,-221.0,0.00012316,2]
[420510343,1776189032584,-500.0,0.00012347,2]
[420510344,1776189032594,-4976.82,0.00012359,2]
[420510345,1776189032606,-500.0,0.00012402,2]
[420510346,1776189032617,-500.0,0.00012457,2]
[420510347,1776189032628,-151.0,0.00012487,2]
[420510348,1776189032638,-200.0,0.00012506,2]
[420510349,1776189032650,-500.0,0.00012512,2]
[420510350,1776189032660,-150.0,0.00012674,2]
[420510351,1776189032672,-150.0,0.00012674,2]
[420510352,1776189032682,-150.0,0.00012674,2]
[420510353,1776189032693,-150.0,0.00012674,2]
[420510354,1776189032703,-150.0,0.00012674,2]
[420510355,1776189032713,-2351.0,0.00012704,2]
[420510356,1776189032724,-500.0,0.000128,4]
[420510357,1776189032736,-150.0,0.000129,2]
[420510358,1776189032747,-1100.0,0.000129,4]
[420510359,1776189032757,-610.0,0.00012942,2]
[420510360,1776189032768,-1518.0,0.00012968,2]
[420510361,1776189032778,-1922.32194628,0.00013053,2]
[420510362,1776189032787,-150.0,0.00013143,2]
[420510363,1776189032797,-500.0,0.00013178,2]
[420510364,1776189032808,-153.63277467,0.000133,2]
[420510365,1776189032818,-222.76063086,0.000133,2]
[420510366,1776189032828,-418.66942992,0.000133,2]
[420510367,1776189032839,-540.0,0.000133,2]
[420510368,1776189032849,-500.0,0.00013373,2]
[420510369,1776189032860,-501.12204549,0.00013373,2]
[420510370,1776189032870,-192.38895204,0.0001339,2]
[420510371,1776189032884,-301.45296488,0.00013392,2]
[420510372,1776189032895,-151.0,0.00013392,2]
[420510373,1776189032905,-721.12765535,0.00013392,2]
[420510374,1776189032915,-500.0,0.00013392,2]
[420510375,1776189032925,-151.0,0.00013392,2]
[420510376,1776189032935,-500.0,0.00013392,2]
[420510377,1776189032945,-500.0,0.00013392,2]
[420510378,1776189032955,-151.0,0.00013392,2]
[420510379,1776189032965,-500.0,0.00013392,2]
[420510380,1776189032975,-151.0,0.00013392,2]
[420510381,1776189032985,-500.0,0.00013392,2]
[420510382,1776189032994,-500.0,0.00013392,2]
[420510383,1776189033004,-500.0,0.00013392,2]
[420510384,1776189033015,-500.0,0.00013392,2]
[420510385,1776189033025,-500.0,0.00013392,2]
[420510386,1776189033035,-500.0,0.00013392,2]
[420510387,1776189033045,-500.0,0.00013392,2]
[420510388,1776189033055,-743.50770149,0.00013392,2]
[420510389,1776189033065,-411.57624402,0.00013392,2]
[420510390,1776189033076,-236.13,0.00013399,2]
[420510391,1776189033085,-255.01061926,0.00013399,2]
[420510392,1776189033095,-500.0,0.00013399,2]
[420510393,1776189033105,-229.36377993,0.00013399,2]
[420510394,1776189033116,-500.0,0.00013399,2]
[420510395,1776189033126,-354.08854204,0.00013399,2]
[420510396,1776189033139,-500.0,0.00013399,2]
[420510397,1776189033149,-192.37243226,0.00013399,2]
[420510398,1776189033162,-400.32039567,0.00013399,2]
[420510399,1776189033177,-292.21878214,0.00013399,2]
[420510400,1776189033187,-415.09881115,0.00013399,2]
[420510401,1776189033199,-500.0,0.00013399,2]
[420510402,1776189033209,-500.0,0.00013399,2]
[420510403,1776189033223,-504.79887548,0.00013399,2]
[420510404,1776189033234,-500.0,0.00013399,2]
[420510405,1776189033246,-500.0,0.00013399,2]
[420510406,1776189033256,-500.0,0.00013399,2]
[420510407,1776189033270,-214.85422124,0.00013399,2]
[420510408,1776189033283,-500.0,0.00013399,2]
[420510409,1776189033293,-500.0,0.00013399,2]
[420510410,1776189033303,-500.0,0.00013399,2]
[420510411,1776189033316,-500.0,0.00013399,2]
[420510412,1776189033329,-500.0,0.00013399,2]
[420510413,1776189033340,-500.0,0.00013399,2]
[420510414,1776189033351,-133704.70114892,0.000134,2]
[420510415,1776189033373,-62415.01282195,0.000134,2]
[420510416,1776189033387,-1284.18884217,0.000134,2]
[420510417,1776189033401,-18769.82975732,0.000134,2]
[420510418,1776189033431,-910.90330755,0.000134,2]
[420510419,1776189033446,-341.348914,0.000134,2]
[420510420,1776189033841,-16303.01262924,0.000134,2]
[420510423,1776189038317,-592.518552,0.000134,2]
[420510424,1776189038330,-11991.61838017,0.000134,2]
[420510425,1776189038343,-1000.18778537,0.000134,2]
[420510426,1776189038358,-865.69,0.000134,2]
[420510428,1776189038373,-778.83859672,0.000134,2]
[420510429,1776189038385,-1401.9124575,0.000134,2]
[420510430,1776189038402,-1057.47540344,0.000134,2]
[420510431,1776189038511,-19168.69671659,0.000134,2]
[420510432,1776189038524,-671.07308538,0.000134,2]
[420510433,1776189038548,-1614.75543,0.000134,2]
[420510434,1776189038560,-469.10245822,0.000134,2]
[420510478,1776189040798,-95967.81136655,0.000134,2]
[420510479,1776189040810,-42540.50800121,0.000134,2]
[420510480,1776189040822,-534.60160422,0.000134,2]
[420510481,1776189040834,-1323.12656741,0.000134,2]
[420510482,1776189040909,-467.66525806,0.000134,2]
[420510483,1776189040921,-14637.31840052,0.000134,2]
[420510495,1776189043278,-202.97372,0.000134,2]
[420510496,1776189043293,-722.8955016,0.000134,2]
[420510497,1776189043697,-229463.92578436,0.000134,2]
[420510500,1776189047554,-5511.59999466,0.000134,2]
[420510501,1776189047583,-725.24899862,0.000134,2]
[420510502,1776189047603,-422.384242,0.000134,2]
[420510503,1776189047630,-954.67114887,0.000134,2]
[420510504,1776189047645,-1480.91707797,0.000134,2]
[420510505,1776189047667,-5017.02947152,0.000134,2]
[420510506,1776189047731,-1170.36,0.000134,2]
[420510507,1776189047760,-15560.062563,0.000134,2]
[420510509,1776189385747,150.0,0.00012862,120]
[420510528,1776190232536,-300.0,0.00010698,2]
[420510529,1776190232561,-1200.0,0.00010698,2]
[420510530,1776190232574,-756.3528,0.00010699,2]
[420510531,1776190232600,-229.0,0.00010699,2]
[420510532,1776190232614,-523.87269125,0.00010699,2]
[420510533,1776190232631,-500.0,0.00010699,2]
[420510534,1776190232652,-173111.21120361,0.000107,2]
[420510535,1776190232687,-15826.02158561,0.000107,2]
[420510536,1776190232721,-875.06899906,0.00011134,2]
[420510537,1776190232751,-378.1764,0.00011234,2]
[420510538,1776190232785,-875.06899905,0.00011586,2]
[420510539,1776190232824,-420.0,0.0001176,2]
[420510540,1776190232837,-1680.0,0.00011768,2]
[420510541,1776190232861,-2000.0,0.00011884,2]
[420510542,1776190232871,-166.4,0.00011913,2]
[420510543,1776190232889,-1500.0,0.0001194,2]
[420510544,1776190232904,-150.0,0.00011959,2]
[420510545,1776190232914,-150.0,0.00011959,2]
[420510546,1776190232929,-150.0,0.00011959,2]
[420510547,1776190232940,-150.0,0.00011959,2]
[420510548,1776190232950,-150.0,0.00011959,2]
[420510549,1776190232962,-150.0,0.00011959,2]
[420510550,1776190232975,-150.0,0.00011959,2]
[420510551,1776190232985,-150.0,0.00011959,2]
[420510552,1776190232995,-150.0,0.00011959,2]
[420510553,1776190233005,-150.0,0.00012,2]
[420510554,1776190233019,-875.06899905,0.00012038,2]
[420510555,1776190233029,-380.08,0.00012055,2]
[420510556,1776190233039,-875.06899905,0.00012489,2]
[420510557,1776190233049,-1600.0,0.00012509,2]
[420510558,1776190233064,-2732.82,0.00012596,2]
[420510559,1776190233075,-500.0,0.000126,4]
[420510560,1776190233084,-752.75,0.00012602,2]
[420510561,1776190233094,-150.0,0.00012623,2]
[420510562,1776190233113,-1000.0,0.000127,4]
[420510563,1776190233123,-1500.0,0.000128,4]
[420510564,1776190233133,-6581.91808688,0.00012836,2]
[420510565,1776190233269,-4846.83191312,0.00012836,2]
[420510566,1776190233308,-150.0,0.00012836,2]
[420510567,1776190233404,-150.0,0.00012862,2]
[420510568,1776190233478,-578.20924308,0.00012883,2]
[420510569,1776190233543,-150.0,0.00012888,2]
[420510570,1776190233583,-2000.0,0.000129,4]
[420510571,1776190233606,-587.0,0.00012926,2]
[420510572,1776190233639,-875.06899905,0.00012941,2]
[420510573,1776190233671,-330.0,0.00012945,2]
[420510574,1776190233719,-166.05,0.00012961,2]
[420510575,1776190233731,-262.3808947,0.00012968,2]
[420510576,1776190233745,-1890.72,0.00012968,2]
[420510577,1776190233764,-250.0,0.00013,2]
[420510578,1776190233773,-727.40057072,0.0001312,2]
[420510579,1776190233789,-190.8086,0.000132,2]
[420510580,1776190233807,-500.0,0.00013273,2]
[420510581,1776190233816,-500.0,0.00013273,2]
[420510582,1776190233827,-500.0,0.00013273,2]
[420510583,1776190233842,-500.0,0.00013273,2]
[420510584,1776190233858,-500.0,0.00013273,2]
[420510585,1776190233870,-500.0,0.00013273,2]
[420510586,1776190233888,-316.08390938,0.00013273,2]
[420510587,1776190233898,-150.0,0.00013288,2]
[420510588,1776190233907,-150.0,0.00013288,2]
[420510589,1776190233928,-500.0,0.00013292,2]
[420510590,1776190233944,-500.0,0.00013292,2]
[420510591,1776190233957,-721.12765535,0.00013292,2]
[420510592,1776190233973,-500.0,0.00013292,2]
[420510593,1776190233994,-500.0,0.00013292,2]
[420510594,1776190234007,-190.93768362,0.00013293,2]
[420510595,1776190234016,-178.40530666,0.00013293,2]
[420510596,1776190234043,-5807.684998,0.00013293,2]
[420510597,1776190234061,-366.33575118,0.00013293,2]
[420510598,1776190234077,-65.60193315,0.00013299,2]
[420510604,1776190238629,-199.4366,0.00010698,2]
[420510605,1776190238658,-1595.35206685,0.00013299,2]
[420510606,1776190238672,-179.508,0.00013299,2]
[420510607,1776190238684,-270.36333315,0.00013299,2]
[420510608,1776190238749,-20.20583466,0.00013299,2]
[420510609,1776190238760,-500.0,0.00013299,2]
[420510610,1776190238771,-553.35921283,0.00013299,2]
[420510611,1776190238782,-178.50743348,0.00013299,2]
[420510612,1776190238792,-500.0,0.00013299,2]
[420510613,1776190238801,-360.55464595,0.00013299,2]
[420510614,1776190238812,-2480680.74769721,0.000133,2]
[420510669,1776190247259,-19319.25230279,0.000133,2]
[420510670,1776190247269,-152.1622225,0.000133,2]
[420510671,1776190247290,-2000.0,0.0001337,2]
[420510672,1776190247302,-875.06899905,0.00013393,2]
[420510673,1776190247315,-200.0,0.000134,2]
[420510674,1776190247333,-54465.2713708,0.000134,2]
[420510675,1776190247348,-5265.9669991,0.000134,2]
[420510676,1776190247362,-200.0,0.000134,2]
[420510677,1776190247385,-892.8244921,0.000134,2]
[420510678,1776190247395,-32016.2038764,0.000134,2]
[420510679,1776190247413,-67653.256272,0.000134,2]
[420510680,1776190247431,-200.0,0.000134,2]
[420510681,1776190247443,-151.0,0.000134,2]
[420510682,1776190247457,-283.89130182,0.000134,2]
[420510683,1776190247480,-500.0,0.000134,2]
[420510684,1776190247501,-200.0,0.000134,2]
[420510685,1776190247523,-86211.17637908,0.000134,2]
[420510686,1776190248328,-2392.81052465,0.000134,2]
[420510687,1776190248400,-325.90225008,0.000134,2]
[420510704,1776191433133,-200.0,0.00012413,2]
[420510705,1776191433167,-200.0,0.000126,4]
[420510706,1776191433177,-1.62118215,0.000127,4]
[420510707,1776191433225,-498.37881785,0.000127,4]
[420510708,1776191433252,-700.0,0.000128,4]
[420510709,1776191433280,-1000.0,0.000129,4]
[420510710,1776191433311,-1415.8,0.00012941,2]
[420510711,1776191433329,-161.54,0.00012941,2]
[420510712,1776191433384,-1200.0,0.00012945,2]
[420510713,1776191433426,-9984.98118215,0.00012946,2]
[420510714,1776191433524,-1213.91127574,0.00012946,2]
[420510715,1776191433595,-1364.49454272,0.00012946,2]
[420510716,1776191433663,-732.5,0.00012946,2]
[420510717,1776191433685,-2542.47299939,0.00012946,2]
[420510718,1776191433704,-2000.0,0.00012976,2]
[420510719,1776191433718,-250.0,0.00013,2]
[420510720,1776191433729,-340.53545864,0.00013032,2]
[420510721,1776191433747,-454.95,0.00013071,2]
[420510722,1776191433762,-151.0,0.00013135,2]
[420510723,1776191433777,-150.0,0.00013199,2]
[420510724,1776191433792,-3974.12204883,0.000132,2]
[420510725,1776191433836,-380.0,0.000132,2]
[420510726,1776191437728,-645.87795117,0.000132,2]
[420510727,1776191437749,-350.02759962,0.000132,2]
[420510728,1776191437763,-2968.8476234,0.000132,2]
[420510729,1776191437782,-1662.67,0.000132,2]
[420510730,1776191437803,-595.3988748,0.000132,2]
[420510731,1776191437815,-320.5437823,0.000132,2]
[420510732,1776191437827,-835.08194218,0.000132,2]
[420510733,1776191437845,-163.66087164,0.000132,2]
[420510734,1776191437859,-12207.78750748,0.00013211,2]
[420510735,1776191437871,-550.3869963,0.00013273,2]
[420510736,1776191437890,-500.0,0.00013273,2]
[420510737,1776191437903,-190.61295005,0.0001329,2]
[420510740,1776191438369,-1328.764,0.00013299,2]
[420510742,1776191438431,-179.508,0.00013299,2]
[420510744,1776191438505,-150.0,0.00013299,2]
[420510746,1776191438568,-500.0,0.00013299,2]
[420510748,1776191438662,-500.0,0.00013299,2]
[420510750,1776191438750,-500.0,0.00013299,2]
[420510752,1776191438783,-328.52887128,0.00013299,2]
[420510754,1776191438794,-500.0,0.00013299,2]
[420510756,1776191438813,-500.0,0.00013299,2]
[420510758,1776191438831,-500.0,0.00013299,2]
[420510759,1776191438851,-215.17668487,0.00013299,2]
[420510762,1776191438869,-500.0,0.00013299,2]
[420510764,1776191438882,-234.24546883,0.00013299,2]
[420510766,1776191438899,-500.0,0.00013299,2]
[420510768,1776191438913,-488.76177658,0.00013299,2]
[420510770,1776191438923,-205460.20099959,0.000133,2]
[420510773,1776191438945,-25906.48771193,0.000133,2]
[420510775,1776191438958,-7904.62537552,0.000133,2]
[420510777,1776191438978,-273.61,0.000133,2]
[420510781,1776191439886,-1010.06786422,0.000133,2]
[420510782,1776191439954,-412.0,0.000133,2]
[420510783,1776191439979,-3987.69204975,0.000133,2]
[420510784,1776191440369,-564.20093203,0.000133,2]
[420510785,1776191440384,-1211.0,0.000133,2]
[420510786,1776191440398,-963.42602351,0.000133,2]
[420510787,1776191440412,-24104.6103854,0.000133,2]
[420510799,1776191442795,-6767.32040939,0.000133,2]
[420510804,1776191445626,-4664.20000004,0.000133,2]
[420510805,1776191445644,-108205.09322109,0.000133,2]
[420510806,1776191445678,-5800.849,0.000133,2]
[420510807,1776191445919,-20100.22222643,0.000133,2]
[420510808,1776191446203,-266.180693,0.000133,2]
[420510847,1776192356571,150.0,0.00012167,120]
[420510871,1776192633303,-900.10494811,0.00011915,2]
[420510872,1776192633426,-1060.14397087,0.00011915,2]
[420510873,1776192633493,-39.75108102,0.00011915,2]
[420510874,1776192633546,-465.4103059,0.00011935,2]
[420510875,1776192633582,-1134.5896941,0.00011935,2]
[420510876,1776192633594,-150.0,0.00012167,2]
[420510877,1776192633631,-1063.011,0.00012372,2]
[420510878,1776192633658,-179.509,0.00012372,2]
[420510879,1776192633692,-150.0,0.00012447,2]
[420510880,1776192633730,-150.0,0.00012447,2]
[420510881,1776192633749,-150.00000001,0.00012447,2]
[420510882,1776192633774,-300.0,0.00012524,2]
[420510883,1776192633786,-970.38200485,0.00012524,2]
[420510884,1776192633815,-229.61799515,0.00012524,2]
[420510885,1776192633827,-5000.0,0.00012525,2]
[420510886,1776192633843,-434.58166563,0.00012549,2]
[420510887,1776192633854,-1569.12563524,0.00012549,2]
[420510888,1776192633873,-4704.22484838,0.00012549,2]
[420510889,1776192633899,-163.97182818,0.00012624,2]
[420510890,1776192633915,-500.0,0.00012624,2]
[420510891,1776192633930,-350.62367941,0.00012624,2]
[420510892,1776192633966,-500.0,0.00012624,2]
[420510893,1776192633996,-323.48473965,0.00012624,2]
[420510894,1776192634017,-192.13324361,0.00012624,2]
[420510895,1776192634043,-314.2809857,0.00012624,2]
[420510896,1776192634066,-150.0,0.00012624,2]
[420510897,1776192634084,-3814.50886628,0.00012625,2]
[420510898,1776192634106,-347.43508066,0.00012625,2]
[420510899,1776192634135,-85366.55414408,0.00012625,2]
[420510900,1776192634156,-21967.62055404,0.00012625,2]
[420510901,1776192634191,-2321.00000001,0.00012625,2]
[420510902,1776192634240,-1405.13503512,0.00012625,2]
[420510903,1776192634275,-1804.06328209,0.00012625,2]
[420510904,1776192634362,-1668.97568377,0.00012625,2]
[420510911,1776192638078,-355.615,0.00012625,2]
[420510912,1776192638095,-2551.37717264,0.00012625,2]
[420510913,1776192640067,-1965.53581026,0.00012625,2]
[420510915,1776192640315,-315.69815996,0.00012625,2]
[420510918,1776192640360,-1497.528,0.00012625,2]
[420510925,1776192640768,-73999.99999998,0.00012625,2]
[420510926,1776192640782,-284.14433268,0.00012625,2]
[420510927,1776192640814,-414.751446,0.00012625,2]
[420510928,1776192640868,-450.9,0.00012625,2]
[420510929,1776192640912,-342.26322073,0.00012625,2]
[420510946,1776192644187,-111992.14768506,0.00012625,2]
[420510949,1776192645828,-722.29235844,0.00012625,2]
[420510950,1776192645908,-4909.46380522,0.00012625,2]
[420510951,1776192645992,-450.0,0.00012625,2]
[420510952,1776192646289,-154269.5319463,0.00012625,2]
[420511010,1776193541633,-202.97372,0.00010698,2]
[420511011,1776193541665,-97.02628,0.00010698,2]
[420511012,1776193541694,-300.0,0.00010698,2]
[420511013,1776193541728,-300.0,0.00010698,2]
[420511014,1776193541758,-25.8692216,0.00010698,2]
[420511037,1776193832512,-150.0,0.00010693,2]
[420511038,1776193832525,-1096.48,0.00010693,2]
[420511039,1776193832551,-103.52,0.00010693,2]
[420511040,1776193832562,-151.0,0.00010694,2]
[420511041,1776193832579,-245.48,0.00010694,2]
[420511042,1776193833147,-254.52,0.00010694,2]
[420511043,1776193833181,-151.0,0.00010694,2]
[420511045,1776193833209,-348.54920626,0.00010694,2]
[420511046,1776193833252,-151.45079374,0.00010694,2]
[420511047,1776193833278,-151.0,0.00010694,2]
[420511048,1776193833315,-500.0,0.00010694,2]
[420511049,1776193833331,-151.0,0.00010694,2]
[420511050,1776193833353,-500.0,0.00010694,2]
[420511051,1776193833370,-500.0,0.00010694,2]
[420511052,1776193833383,-500.0,0.00010694,2]
[420511053,1776193833398,-500.0,0.00010694,2]
[420511054,1776193833413,-500.0,0.00010694,2]
[420511055,1776193833431,-500.0,0.00010694,2]
[420511056,1776193833446,-500.0,0.00010694,2]
[420511057,1776193833456,-500.0,0.00010694,2]
[420511058,1776193833471,-546.87623823,0.00010699,2]
[420511059,1776193833486,-500.0,0.00010699,2]
[420511060,1776193833502,-500.0,0.00010699,2]
[420511061,1776193833523,-500.0,0.00010699,2]
[420511062,1776193833541,-500.0,0.00010699,2]
[420511063,1776193833556,-500.0,0.00010699,2]
[420511064,1776193833565,-500.0,0.00010699,2]
[420511065,1776193833575,-394.32632423,0.00010699,2]
[420511066,1776193833586,-500.0,0.00010699,2]
[420511067,1776193833598,-500.0,0.00010699,2]
[420511068,1776193833608,-500.0,0.00010699,2]
[420511069,1776193833617,-500.0,0.00010699,2]
[420511070,1776193833630,-500.0,0.00010699,2]
[420511071,1776193833642,-191.28346551,0.00010699,2]
[420511072,1776193833651,-353.3024045,0.00010699,2]
[420511073,1776193833660,-500.0,0.00010699,2]
[420511074,1776193833671,-351.87187198,0.00010699,2]
[420511075,1776193833681,-500.0,0.00010699,2]
[420511076,1776193833692,-500.0,0.00010699,2]
[420511077,1776193833702,-192.37243226,0.00010699,2]
[420511078,1776193833719,-400.32039567,0.00010699,2]
[420511079,1776193833729,-292.21878214,0.00010699,2]
[420511080,1776193833739,-350.9689611,0.00010699,2]
[420511081,1776193833748,-158016.42786121,0.000107,2]
[420511082,1776193833761,-62428.4224648,0.000107,2]
[420511083,1776193833869,-4630.0,0.000107,2]
[420511084,1776193833880,-1500.36,0.000107,2]
[420511090,1776193838791,-46530.30828333,0.000107,2]
[420511091,1776193838804,-1170.75638054,0.000107,2]
[420511092,1776193838848,-355.67557394,0.000107,2]
[420511093,1776193838865,-34443.99712,0.000107,2]
[420511095,1776193840329,-1487.0,0.000107,2]
[420511096,1776193840350,-781.06101906,0.000107,2]
[420511097,1776193840363,-674.66537723,0.000107,2]
[420511098,1776193840376,-1956.41981946,0.000107,2]
[420511099,1776193840414,-7721.94853633,0.000107,2]
[420511100,1776193840439,-348.95445861,0.000107,2]
[420511101,1776193840507,-292.35919594,0.000107,2]
[420511182,1776193843298,-1034.09274746,0.000107,2]
[420511183,1776193843333,-764.86434579,0.000107,2]
[420511184,1776193843348,-3101.36321665,0.000107,2]
[420511185,1776193843391,-18380.83223651,0.000107,2]
[420511186,1776193843438,-4953.18249746,0.000107,2]
[420511187,1776193843473,-743.33980056,0.000107,2]
[420511188,1776193843490,-1030.1308482,0.000107,2]
[420511189,1776193843506,-1772.92596407,0.000107,2]
[420511190,1776193843530,-4307.74967549,0.000107,2]
[420511191,1776193843550,-987.52698681,0.000107,2]
[420511192,1776193843620,-232572.80754114,0.000107,2]
[420511193,1776193843653,-2343.68669856,0.000107,2]
[420511194,1776193843719,-558.80953644,0.000107,2]
[420511195,1776193843745,-3239.2025219,0.000107,2]
[420511196,1776193843778,-9080.52846166,0.000107,2]
[420511201,1776193846310,-11739.86978487,0.000107,2]
[420511202,1776193846321,-2174.67929847,0.000107,2]
[420511203,1776193846334,-20124.87531349,0.000107,2]
[420511204,1776193846347,-16278.35587084,0.000107,2]
[420511205,1776193846359,-3466.0095172,0.000107,2]
[420511206,1776193846425,-3478.7,0.000107,2]
[420511207,1776193846504,-604.29764814,0.000107,2]
[420511208,1776193846673,-625.97460234,0.000107,2]
[420511209,1776193846691,-841.698831,0.000107,2]
[420511210,1776193846703,-2430.59892602,0.000107,2]
[420511211,1776193846715,-1624.84334,0.000107,2]
[420511212,1776193846728,-715.2085,0.000107,2]
[420511213,1776193846740,-1141.551202,0.000107,2]
[420511214,1776193846755,-855.34030862,0.000107,2]
[420511215,1776193846802,-6106.53102283,0.000107,2]
[420511217,1776193846816,-6541.77456267,0.000107,2]
[420511297,1776194773723,150.0,0.00011233,120]
[420511332,1776195034214,-752.75,9.698e-05,2]
[420511333,1776195034224,-300.0,9.734e-05,2]
[420511334,1776195034233,-1200.0,9.734e-05,2]
[420511335,1776195034242,-300.0,9.734e-05,2]
[420511336,1776195034252,-2057.24999999,9.735e-05,2]
[420511337,1776195034264,-351.5299975,9.735e-05,2]
[420511338,1776195034290,-603.84235597,9.735e-05,2]
[420511339,1776195034301,-478.50807902,9.735e-05,2]
[420511340,1776195034313,-2509.17536752,9.735e-05,2]
[420511341,1776195034322,-275.55054349,9.735e-05,2]
[420511342,1776195034332,-289.0,9.735e-05,2]
[420511343,1776195034341,-1357.37739899,9.735e-05,2]
[420511344,1776195034353,-3619.44260101,9.735e-05,2]
[420511345,1776195034362,-250.0,9.859e-05,2]
[420511346,1776195034371,-250.0,9.999e-05,2]